fUST/lending_fUST_20251010
["ID","MTS","AMOUNT","RATE_DAILY","PERIOD"]
[390344384,1760026237789,-500.0,0.00016438,2]
[390344386,1760026237798,-500.0,0.00016438,2]
[390344388,1760026237807,-500.0,0.00016438,2]
[390344390,1760026237817,-500.0,0.00016438,2]
[390344392,1760026237826,-500.0,0.00016438,2]
[390344393,1760026237835,-500.0,0.00016438,2]
[390344395,1760026237845,-500.0,0.00016438,2]
[390344397,1760026237854,-500.0,0.00016438,2]
[390344399,1760026237864,-1194.68,0.00016438,2]
[390344401,1760026237873,-500.0,0.00016438,2]
[390344403,1760026237883,-500.0,0.00016438,2]
[390344405,1760026237892,-500.0,0.00016438,2]
[390344407,1760026237901,-500.0,0.00016438,2]
[390344409,1760026237910,-500.0,0.00016438,2]
[390344411,1760026237920,-500.0,0.00016438,2]
[390344413,1760026237929,-500.0,0.00016438,2]
[390344415,1760026237939,-1465.36,0.00016438,2]
[390344417,1760026237949,-500.0,0.00016438,2]
[390344419,1760026237958,-500.0,0.00016438,2]
[390344421,1760026237968,-500.0,0.00016438,2]
[390344423,1760026237977,-500.0,0.00016438,2]
[390344425,1760026237986,-500.0,0.00016438,2]
[390344427,1760026237996,-776.33,0.00016438,2]
[390344430,1760026238006,-500.0,0.00016438,2]
[390344432,1760026238015,-3378.5,0.00016438,2]
[390344434,1760026238024,-776.33,0.00016438,2]
[390344436,1760026238034,-776.33,0.00016438,2]
[390344438,1760026238045,-500.0,0.00016438,2]
[390344439,1760026238054,-776.33,0.00016438,2]
[390344441,1760026238064,-776.33,0.00016438,2]
[390344443,1760026238074,-776.33,0.00016438,2]
[390344446,1760026238084,-776.33,0.00016438,2]
[390344448,1760026238093,-776.33,0.00016438,2]
[390344449,1760026238103,-500.0,0.00016438,2]
[390344451,1760026238113,-353.09280004,0.00016438,2]
[390344485,1760026238350,-423.23719996,0.00016438,2]
[390344487,1760026238359,-776.33,0.00016438,2]
[390344489,1760026238369,-771.44586934,0.00016438,2]
[390344589,1760026239510,-4.88413066,0.00016438,2]
[390344591,1760026239521,-763.63918602,0.00016438,2]
[390344594,1760026239541,-12.69081398,0.00016438,2]
[390344596,1760026239553,-776.33,0.00016438,2]
[390344598,1760026239564,-776.33,0.00016438,2]
[390344600,1760026239576,-776.33,0.00016438,2]
[390344602,1760026239588,-776.33,0.00016438,2]
[390344604,1760026239600,-594.18,0.00016438,2]
[390344607,1760026239611,-500.0,0.00016438,2]
[390344609,1760026239622,-6446.95,0.00016438,2]
[390344611,1760026239633,-500.0,0.00016438,2]
[390344613,1760026239644,-500.0,0.00016438,2]
[390344615,1760026239655,-2626.19,0.00016438,2]
[390344618,1760026239667,-500.0,0.00016438,2]
[390344620,1760026239679,-500.0,0.00016438,2]
[390344622,1760026239690,-594.04,0.00016438,2]
[390344624,1760026239701,-1410.72,0.00016438,2]
[390344626,1760026239712,-82.61924349,0.00016438,2]
[390344629,1760026239732,-417.38075651,0.00016438,2]
[390344631,1760026239743,-395.37868,0.00016438,2]
[390344716,1760026241034,-104.62132,0.00016438,2]
[390344717,1760026241047,-1494.73,0.00016438,2]
[390344718,1760026241058,-500.0,0.00016438,2]
[390344719,1760026241069,-500.0,0.00016438,2]
[390344720,1760026241080,-2473.94,0.00016438,2]
[390344721,1760026241089,-742.38,0.00016438,2]
[390344722,1760026241099,-500.0,0.00016438,2]
[390344723,1760026241109,-500.0,0.00016438,2]
[390344724,1760026241122,-500.0,0.00016438,2]
[390344725,1760026241131,-500.0,0.00016438,2]
[390344726,1760026241140,-500.0,0.00016438,2]
[390344727,1760026241149,-500.0,0.00016438,2]
[390344728,1760026241158,-706.25,0.00016438,2]
[390344729,1760026241167,-500.0,0.00016438,2]
[390344730,1760026241176,-2805.79,0.00016438,2]
[390344731,1760026241185,-8625.33,0.00016438,2]
[390344732,1760026241196,-500.0,0.00016438,2]
[390344733,1760026241205,-500.0,0.00016438,2]
[390344734,1760026241215,-1079.54,0.00016438,2]
[390344735,1760026241226,-537.34,0.00016438,2]
[390344736,1760026241235,-500.0,0.00016438,2]
[390344737,1760026241244,-500.0,0.00016438,2]
[390344738,1760026241253,-1013.34,0.00016438,2]
[390344739,1760026241263,-500.0,0.00016438,2]
[390344740,1760026241272,-500.0,0.00016438,2]
[390344741,1760026241281,-330.5622234,0.00016438,2]
[390344742,1760026241290,-1511.17,0.00016438,2]
[390344743,1760026241301,-500.0,0.00016438,2]
[390344744,1760026241310,-500.0,0.00016438,2]
[390344745,1760026241320,-608.99,0.00016438,2]
[390344746,1760026241329,-375.50914637,0.00016438,2]
[390344747,1760026241340,-500.0,0.00016438,2]
[390344748,1760026241350,-500.0,0.00016438,2]
[390344749,1760026241359,-500.0,0.00016438,2]
[390344750,1760026241663,-500.0,0.00016438,2]
[390344751,1760026241679,-500.0,0.00016438,2]
[390344752,1760026241688,-500.0,0.00016438,2]
[390344753,1760026241697,-500.0,0.00016438,2]
[390344754,1760026241707,-500.0,0.00016438,2]
[390344755,1760026241716,-512.58521099,0.00016438,2]
[390344756,1760026241726,-1111.26,0.00016438,2]
[390344757,1760026241737,-500.0,0.00016438,2]
[390344758,1760026241746,-500.0,0.00016438,2]
[390344759,1760026241756,-500.0,0.00016438,2]
[390344760,1760026241765,-500.0,0.00016438,2]
[390344761,1760026241774,-1085.74,0.00016438,2]
[390344762,1760026241784,-500.0,0.00016438,2]
[390344763,1760026241793,-500.0,0.00016438,2]
[390344764,1760026241802,-500.0,0.00016438,2]
[390344765,1760026241811,-2625.21,0.00016438,2]
[390344766,1760026241821,-500.0,0.00016438,2]
[390344767,1760026241830,-500.0,0.00016438,2]
[390344768,1760026241839,-500.0,0.00016438,2]
[390344769,1760026241848,-368.60060503,0.00016438,2]
[390344770,1760026241858,-1120.26,0.00016438,2]
[390344771,1760026241867,-500.0,0.00016438,2]
[390344773,1760026241876,-500.0,0.00016438,2]
[390344775,1760026241885,-500.0,0.00016438,2]
[390344777,1760026241894,-500.0,0.00016438,2]
[390344778,1760026241903,-500.0,0.00016438,2]
[390344779,1760026241912,-500.0,0.00016438,2]
[390344780,1760026241921,-500.0,0.00016438,2]
[390344781,1760026241931,-618.29715769,0.00016438,2]
[390344782,1760026241941,-2390.18,0.00016438,2]
[390344783,1760026241951,-547.92,0.00016438,2]
[390344784,1760026241960,-500.0,0.00016438,2]
[390344785,1760026241969,-500.0,0.00016438,2]
[390344786,1760026241979,-1055.89,0.00016438,2]
[390344787,1760026241988,-500.0,0.00016438,2]
[390344788,1760026241997,-500.0,0.00016438,2]
[390344789,1760026242006,-500.0,0.00016438,2]
[390344790,1760026242015,-500.0,0.00016438,2]
[390344791,1760026242025,-500.0,0.00016438,2]
[390344792,1760026242034,-500.0,0.00016438,2]
[390344793,1760026242043,-500.0,0.00016438,2]
[390344794,1760026242052,-500.0,0.00016438,2]
[390344795,1760026242062,-897.72,0.00016438,2]
[390344796,1760026242072,-500.0,0.00016438,2]
[390344797,1760026242082,-500.0,0.00016438,2]
[390344798,1760026242091,-500.0,0.00016438,2]
[390344799,1760026242101,-763.58,0.00016438,2]
[390344800,1760026242110,-500.0,0.00016438,2]
[390344801,1760026242120,-500.0,0.00016438,2]
[390344802,1760026242132,-645.85,0.00016438,2]
[390344803,1760026242141,-762.96,0.00016438,2]
[390344804,1760026242154,-500.0,0.00016438,2]
[390344805,1760026242164,-4814.86,0.00016438,2]
[390344806,1760026242173,-500.0,0.00016438,2]
[390344807,1760026242183,-166.66,0.00016438,2]
[390344808,1760026242193,-2411.69,0.00016438,2]
[390344809,1760026242203,-500.0,0.00016438,2]
[390344810,1760026242212,-500.0,0.00016438,2]
[390344811,1760026242223,-500.0,0.00016438,2]
[390344812,1760026242233,-500.0,0.00016438,2]
[390344813,1760026242242,-909.44,0.00016438,2]
[390344814,1760026242251,-583.79,0.00016438,2]
[390344815,1760026242260,-500.0,0.00016438,2]
[390344817,1760026242270,-500.0,0.00016438,2]
[390344819,1760026242279,-500.0,0.00016438,2]
[390344821,1760026242288,-500.0,0.00016438,2]
[390344823,1760026242298,-500.0,0.00016438,2]
[390344825,1760026242309,-500.0,0.00016438,2]
[390344827,1760026242318,-961.1,0.00016438,2]
[390344829,1760026242327,-500.0,0.00016438,2]
[390344831,1760026242336,-500.0,0.00016438,2]
[390344833,1760026242346,-634.72,0.00016438,2]
[390344835,1760026242355,-1136.02,0.00016438,2]
[390344837,1760026242365,-500.0,0.00016438,2]
[390344839,1760026242374,-500.0,0.00016438,2]
[390344841,1760026242384,-500.0,0.00016438,2]
[390344843,1760026242393,-500.0,0.00016438,2]
[390344845,1760026242403,-318.09423374,0.00016438,2]
[390345279,1760026246721,-1112.64576626,0.00016438,2]
[390345281,1760026246731,-500.0,0.00016438,2]
[390345283,1760026246740,-927.52,0.00016438,2]
[390345285,1760026246750,-500.0,0.00016438,2]
[390345287,1760026246760,-500.0,0.00016438,2]
[390345289,1760026246769,-851.72,0.00016438,2]
[390345291,1760026246778,-500.0,0.00016438,2]
[390345293,1760026246787,-713.11605374,0.00016438,2]
[390345301,1760026246859,-2182.19394626,0.00016438,2]
[390345303,1760026246868,-500.0,0.00016438,2]
[390345305,1760026246877,-500.0,0.00016438,2]
[390345307,1760026246887,-2249.33,0.00016438,2]
[390345309,1760026246897,-500.0,0.00016438,2]
[390345311,1760026246906,-500.0,0.00016438,2]
[390345313,1760026246916,-500.0,0.00016438,2]
[390345315,1760026246926,-500.0,0.00016438,2]
[390345317,1760026246935,-500.0,0.00016438,2]
[390345319,1760026246945,-2912.84,0.00016438,2]
[390345320,1760026246954,-500.0,0.00016438,2]
[390345322,1760026246964,-500.0,0.00016438,2]
[390345324,1760026246973,-500.0,0.00016438,2]
[390345327,1760026246983,-500.0,0.00016438,2]
[390345329,1760026246992,-500.0,0.00016438,2]
[390345331,1760026247002,-500.0,0.00016438,2]
[390345333,1760026247011,-2914.05,0.00016438,2]
[390345335,1760026247020,-500.0,0.00016438,2]
[390345337,1760026247029,-602.47,0.00016438,2]
[390345339,1760026247039,-500.5525679,0.00016438,2]
[390345341,1760026247048,-500.0,0.00016438,2]
[390345343,1760026247057,-500.0,0.00016438,2]
[390345345,1760026247066,-895.91,0.00016438,2]
[390345347,1760026247076,-500.0,0.00016438,2]
[390345349,1760026247085,-500.76057122,0.00016438,2]
[390345350,1760026247095,-500.0,0.00016438,2]
[390345352,1760026247104,-500.0,0.00016438,2]
[390345354,1760026247113,-500.0,0.00016438,2]
[390345357,1760026247123,-500.0,0.00016438,2]
[390345358,1760026247132,-500.0,0.00016438,2]
[390345360,1760026247141,-500.0,0.00016438,2]
[390345362,1760026247150,-500.0,0.00016438,2]
[390345364,1760026247160,-500.0,0.00016438,2]
[390345366,1760026247169,-500.0,0.00016438,2]
[390345368,1760026247179,-5034.64,0.00016438,2]
[390345370,1760026247187,-500.0,0.00016438,2]
[390345372,1760026247197,-500.0,0.00016438,2]
[390345374,1760026247206,-500.0,0.00016438,2]
[390345376,1760026247215,-4183.3,0.00016438,2]
[390345378,1760026247228,-395.19228602,0.00016438,2]
[390345380,1760026247237,-500.0,0.00016438,2]
[390345382,1760026247249,-500.0,0.00016438,2]
[390345384,1760026247258,-2917.93,0.00016438,2]
[390345386,1760026247270,-500.0,0.00016438,2]
[390345388,1760026247279,-500.0,0.00016438,2]
[390345390,1760026247288,-500.0,0.00016438,2]
[390345392,1760026247299,-665.87,0.00016438,2]
[390345394,1760026247309,-500.0,0.00016438,2]
[390345396,1760026247318,-500.0,0.00016438,2]
[390345397,1760026247328,-500.0,0.00016438,2]
[390345399,1760026247337,-500.0,0.00016438,2]
[390345401,1760026247346,-1112.22,0.00016438,2]
[390345403,1760026247355,-500.0,0.00016438,2]
[390345405,1760026247365,-500.0,0.00016438,2]
[390345407,1760026247374,-1230.11,0.00016438,2]
[390345409,1760026247383,-500.0,0.00016438,2]
[390345411,1760026247392,-687.14,0.00016438,2]
[390345413,1760026247402,-500.0,0.00016438,2]
[390345415,1760026247411,-1272.91,0.00016438,2]
[390345417,1760026247420,-500.0,0.00016438,2]
[390345419,1760026247430,-1130.45,0.00016438,2]
[390345421,1760026247439,-500.0,0.00016438,2]
[390345423,1760026247449,-500.0,0.00016438,2]
[390345425,1760026247458,-500.0,0.00016438,2]
[390345427,1760026247467,-500.0,0.00016438,2]
[390345429,1760026247475,-500.0,0.00016438,2]
[390345431,1760026247486,-442.35628968,0.00016438,2]
[390345432,1760026247495,-500.0,0.00016438,2]
[390345434,1760026247504,-500.0,0.00016438,2]
[390345436,1760026247513,-500.0,0.00016438,2]
[390345438,1760026247523,-6178.32,0.00016438,2]
[390345440,1760026247531,-1000.0,0.00016438,2]
[390345442,1760026247540,-574.0,0.00016468,2]
[390345444,1760026247550,-189.6640962,0.000165,2]
[390345446,1760026247560,-333.9773775,0.000165,2]
[390345448,1760026247570,-189.6640962,0.000165,2]
[390345450,1760026247579,-153.0,0.000165,2]
[390345452,1760026247589,-574.0,0.00016551,2]
[390345454,1760026247598,-574.0,0.00016556,2]
[390345456,1760026247607,-574.0,0.00016564,2]
[390345458,1760026247616,-574.0,0.00016607,2]
[390345460,1760026247625,-755.45465498,0.00016611,2]
[390345462,1760026247635,-574.0,0.00016626,2]
[390345464,1760026247644,-1433.09600349,0.00016684,2]
[390345466,1760026247653,-776.33,0.00016686,2]
[390345468,1760026247662,-15509.3352193,0.00016687,2]
[390345470,1760026247671,-3549.6730256,0.00016687,2]
[390345472,1760026247680,-46144.5263825,0.000167,2]
[390345474,1760026247690,-776.33,0.00016711,2]
[390345476,1760026247698,-776.33,0.00016711,2]
[390345477,1760026247708,-776.33,0.00016711,2]
[390345479,1760026247717,-776.33,0.00016711,2]
[390345481,1760026247727,-776.33,0.00016711,2]
[390345483,1760026247736,-776.33,0.00016711,2]
[390345485,1760026247746,-776.45,0.00016711,2]
[390345487,1760026247755,-500.0,0.00016712,2]
[390345489,1760026247765,-500.0,0.00016712,2]
[390345491,1760026247774,-501.31061349,0.00016712,2]
[390345493,1760026247784,-500.0,0.00016712,2]
[390345495,1760026247794,-563.72813659,0.00016712,2]
[390345497,1760026247803,-2252.65763382,0.00016712,2]
[390345499,1760026247812,-836.29,0.00016712,2]
[390345501,1760026247822,-500.0,0.00016712,2]
[390345503,1760026247831,-500.0,0.00016712,2]
[390345505,1760026247841,-500.0,0.00016712,2]
[390345507,1760026247850,-500.0,0.00016712,2]
[390345509,1760026247860,-720.30176114,0.00016712,2]
[390345511,1760026247869,-500.0,0.00016712,2]
[390345513,1760026247879,-500.0,0.00016712,2]
[390345514,1760026247888,-500.0,0.00016712,2]
[390345516,1760026247897,-500.0,0.00016712,2]
[390345518,1760026247907,-500.0,0.00016712,2]
[390345521,1760026247917,-493.80453543,0.00016712,2]
[390345522,1760026247926,-500.0,0.00016712,2]
[390345524,1760026247936,-500.0,0.00016712,2]
[390345526,1760026247945,-500.0,0.00016712,2]
[390345528,1760026247954,-500.0,0.00016712,2]
[390345530,1760026247964,-500.0,0.00016712,2]
[390345532,1760026247974,-500.22862449,0.00016712,2]
[390345534,1760026247983,-500.0,0.00016712,2]
[390345536,1760026247992,-500.0,0.00016712,2]
[390345538,1760026248001,-500.0,0.00016712,2]
[390345540,1760026248009,-500.0,0.00016712,2]
[390345542,1760026248019,-500.0,0.00016712,2]
[390345544,1760026248028,-500.0,0.00016712,2]
[390345546,1760026248037,-500.0,0.00016712,2]
[390345548,1760026248047,-500.0,0.00016712,2]
[390345550,1760026248055,-500.0,0.00016712,2]
[390345552,1760026248065,-500.0,0.00016712,2]
[390345554,1760026248074,-500.0,0.00016712,2]
[390345556,1760026248083,-502.28219257,0.00016712,2]
[390345558,1760026248093,-500.0,0.00016712,2]
[390345560,1760026248102,-500.0,0.00016712,2]
[390345561,1760026248112,-500.0,0.00016712,2]
[390345563,1760026248121,-500.0,0.00016712,2]
[390345565,1760026248131,-500.0,0.00016712,2]
[390345567,1760026248140,-500.0,0.00016712,2]
[390345569,1760026248150,-500.0,0.00016712,2]
[390345571,1760026248160,-500.0,0.00016712,2]
[390345573,1760026248169,-500.0,0.00016712,2]
[390345575,1760026248178,-500.0,0.00016712,2]
[390345577,1760026248188,-647.21,0.00016712,2]
[390345579,1760026248197,-500.0,0.00016712,2]
[390345581,1760026248207,-533.2470015,0.00016712,2]
[390345583,1760026248217,-500.0,0.00016712,2]
[390345585,1760026248229,-500.0,0.00016712,2]
[390345587,1760026248238,-500.0,0.00016712,2]
[390345589,1760026248247,-500.0,0.00016712,2]
[390345591,1760026248257,-500.0,0.00016712,2]
[390345593,1760026248267,-500.0,0.00016712,2]
[390345595,1760026248276,-500.0,0.00016712,2]
[390345597,1760026248285,-833.16,0.00016712,2]
[390345599,1760026248295,-500.0,0.00016712,2]
[390345601,1760026248304,-500.0,0.00016712,2]
[390345603,1760026248313,-500.0,0.00016712,2]
[390345605,1760026248322,-500.0,0.00016712,2]
[390345607,1760026248331,-500.0,0.00016712,2]
[390345609,1760026248340,-500.0,0.00016712,2]
[390345611,1760026248350,-500.0,0.00016712,2]
[390345628,1760026248481,-317.52597625,0.00016712,2]
[390345631,1760026248522,-500.0,0.00016712,2]
[390345633,1760026248532,-500.0,0.00016712,2]
[390345635,1760026248542,-3620.67,0.00016712,2]
[390345637,1760026248551,-500.0,0.00016712,2]
[390345639,1760026248560,-500.0,0.00016712,2]
[390345641,1760026248570,-545.1,0.00016712,2]
[390345643,1760026248580,-500.0,0.00016712,2]
[390345645,1760026248590,-602.36,0.00016712,2]
[390345647,1760026248599,-500.0,0.00016712,2]
[390345649,1760026248609,-500.0,0.00016712,2]
[390345651,1760026248618,-500.0,0.00016712,2]
[390345653,1760026248628,-500.0,0.00016712,2]
[390345655,1760026248638,-1478.01,0.00016712,2]
[390345656,1760026248649,-500.0,0.00016712,2]
[390345658,1760026248659,-855.26,0.00016712,2]
[390345660,1760026248671,-500.0,0.00016712,2]
[390345662,1760026248683,-1253.38,0.00016712,2]
[390345664,1760026248693,-500.0,0.00016712,2]
[390345666,1760026248704,-500.0,0.00016712,2]
[390345668,1760026248714,-500.0,0.00016712,2]
[390345669,1760026248724,-500.0,0.00016712,2]
[390345671,1760026248735,-500.0,0.00016712,2]
[390345673,1760026248745,-500.0,0.00016712,2]
[390345676,1760026248756,-500.0,0.00016712,2]
[390345677,1760026248766,-500.0,0.00016712,2]
[390345679,1760026248776,-658.28,0.00016712,2]
[390345681,1760026248786,-500.0,0.00016712,2]
[390345683,1760026248797,-500.0,0.00016712,2]
[390345685,1760026248807,-500.0,0.00016712,2]
[390345687,1760026248817,-151.0,0.00016712,2]
[390345689,1760026248827,-151.0,0.00016712,2]
[390345691,1760026248837,-151.0,0.00016712,2]
[390345693,1760026248847,-544.169836,0.00016712,2]
[390345695,1760026248857,-544.169836,0.00016712,2]
[390345697,1760026248866,-500.0,0.00016712,2]
[390345699,1760026248875,-544.169836,0.00016712,2]
[390345701,1760026248885,-544.169836,0.00016712,2]
[390345703,1760026248895,-500.0,0.00016712,2]
[390345705,1760026248904,-637.25521091,0.00016712,2]
[390345707,1760026248913,-500.0,0.00016712,2]
[390345709,1760026248924,-500.0,0.00016712,2]
[390345711,1760026248933,-606.24,0.00016712,2]
[390345713,1760026248943,-500.0,0.00016712,2]
[390345715,1760026248952,-320.02995507,0.00016712,2]
[390345717,1760026248961,-500.0,0.00016712,2]
[390345719,1760026248970,-500.0,0.00016712,2]
[390345721,1760026248980,-500.0,0.00016712,2]
[390345723,1760026248989,-500.0,0.00016712,2]
[390345725,1760026248999,-500.0,0.00016712,2]
[390345727,1760026249008,-500.0,0.00016712,2]
[390345729,1760026249017,-500.0,0.00016712,2]
[390345731,1760026249027,-500.0,0.00016712,2]
[390345733,1760026249036,-500.0,0.00016712,2]
[390345735,1760026249046,-500.0,0.00016712,2]
[390345737,1760026249055,-500.0,0.00016712,2]
[390345739,1760026249065,-500.0,0.00016712,2]
[390345741,1760026249074,-500.0,0.00016712,2]
[390345743,1760026249083,-151.0,0.00016712,2]
[390345745,1760026249094,-500.0,0.00016712,2]
[390345747,1760026249104,-500.0,0.00016712,2]
[390345749,1760026249114,-500.0,0.00016712,2]
[390345751,1760026249123,-500.0,0.00016712,2]
[390345753,1760026249132,-500.0,0.00016712,2]
[390345755,1760026249143,-500.0,0.00016712,2]
[390345757,1760026249152,-151.0,0.00016712,2]
[390345759,1760026249162,-500.0,0.00016712,2]
[390345760,1760026249171,-151.0,0.00016712,2]
[390345761,1760026249180,-500.0,0.00016712,2]
[390345762,1760026249190,-500.0,0.00016712,2]
[390345763,1760026249199,-406.56798989,0.00016712,2]
[390346244,1760026291893,200.0,0.00024897,120]
[390346246,1760026352123,200.0,0.00027614,120]
[390346247,1760026411394,200.0,0.00027483,120]
[390346248,1760026471912,200.0,0.00027035,120]
[390346251,1760026950479,169.0,0.00024563,120]
[390346252,1760026951322,169.0,0.00025791,120]
[390346253,1760026952567,169.0,0.00027081,120]
[390346254,1760026953821,169.0,0.00028435,120]
[390346288,1760027011613,157.990525,0.00024,30]
[390346360,1760027432882,-342.6164712,0.00016027,2]
[390346362,1760027432892,-300.0,0.00016143,2]
[390346363,1760027432902,-552.0668768,0.00016143,2]
[390346365,1760027432939,-647.9331232,0.00016143,2]
[390346367,1760027432948,-858.4,0.00016328,3]
[390346369,1760027432957,-162.0,0.00016337,2]
[390346371,1760027432966,-1200.0,0.00016337,2]
[390346372,1760027432976,-178.69132816,0.00016337,2]
[390346374,1760027432985,-118742.97554864,0.00016338,2]
[390346376,1760027432996,-5765.6,0.00016338,2]
[390346378,1760027433007,-2162.85,0.00016338,2]
[390346422,1760027438683,-844.71,0.00016244,2]
[390346423,1760027438739,-483.20862225,0.00016244,2]
[390346424,1760027438751,-4239.67109534,0.00016244,2]
[390346443,1760027441041,-5401.49388667,0.00016244,2]
[390346470,1760027446799,-11674.92230171,0.00016244,2]
[390346471,1760027446808,-604.36372396,0.00016338,2]
[390346472,1760027446817,-7908.23672012,0.00016338,2]
[390346476,1760027446854,-24266.0,0.00016338,2]
[390346477,1760027446912,-21800.0,0.00016338,2]
[390346493,1760027974418,227.915292,0.00015317,2]
[390346507,1760028188589,289.145318,0.00015122,2]
[390346508,1760028511595,378.4285792,0.00028767,120]
[390346509,1760028522244,250.0,0.00015521,2]
[390346510,1760028553277,-168.0,0.00015867,2]
[390346511,1760028553298,-335.76414178,0.00015867,2]
[390346512,1760028553321,-1305.40950424,0.00015911,2]
[390346513,1760028553346,-168.0,0.00016026,2]
[390346514,1760028553373,-1200.0,0.00016139,2]
[390346515,1760028553396,-40040.23714512,0.0001614,2]
[390346516,1760028553421,-168.0,0.00016154,2]
[390346517,1760028553448,-364.31224591,0.00016237,2]
[390346518,1760028553476,-501.94083702,0.00016237,2]
[390346519,1760028553501,-220.12971741,0.00016237,2]
[390346520,1760028553526,-165.07709862,0.00016237,2]
[390346521,1760028553558,-5363.1293099,0.00016238,2]
[390346527,1760028577291,-1305.40950424,0.00016119,2]
[390346528,1760028577314,-163.97118609,0.000162,2]
[390346529,1760028577339,-48530.61930967,0.00016238,2]
[390346530,1760028606752,-168.0,0.00016198,2]
[390346531,1760028606775,-300.0,0.00016237,2]
[390346532,1760028606800,-1200.0,0.00016237,2]
[390346533,1760028606825,-11144.60557777,0.00016238,2]
[390346534,1760028606848,-1175.8300242,0.000163,2]
[390346602,1760028632291,-166.0,0.00016338,2]
[390346604,1760028632300,-162.0,0.00016338,2]
[390346606,1760028632311,-162.0,0.00016338,2]
[390346608,1760028632320,-194.98,0.0001634,3]
[390346610,1760028632330,-584.98,0.0001634,3]
[390346612,1760028632339,-377.0,0.00016344,2]
[390346614,1760028632349,-44251.3471558,0.0001635,2]
[390346616,1760028632358,-178.5050995,0.0001635,2]
[390346617,1760028632368,-1396.689584,0.00016377,2]
[390346620,1760028632379,-588.1827557,0.000164,2]
[390346621,1760028632389,-324.9761092,0.000164,2]
[390346623,1760028632399,-588.1827557,0.000164,2]
[390346625,1760028632408,-595.5495834,0.000164,2]
[390346627,1760028632418,-588.1827557,0.000164,2]
[390346629,1760028632427,-2290.58,0.00016438,2]
[390346631,1760028632436,-500.0,0.00016438,2]
[390346633,1760028632446,-501.42742303,0.00016438,2]
[390346635,1760028632455,-500.0,0.00016438,2]
[390346637,1760028632464,-500.0,0.00016438,2]
[390346639,1760028632474,-500.0,0.00016438,2]
[390346640,1760028632484,-501.15839966,0.00016438,2]
[390346642,1760028632493,-500.0,0.00016438,2]
[390346644,1760028632502,-341.78233339,0.00016438,2]
[390346646,1760028632511,-500.0,0.00016438,2]
[390346648,1760028632520,-500.0,0.00016438,2]
[390346650,1760028632530,-500.0,0.00016438,2]
[390346652,1760028632539,-500.0,0.00016438,2]
[390346654,1760028632548,-500.0,0.00016438,2]
[390346655,1760028632558,-460.74605793,0.00016438,2]
[390346657,1760028632567,-500.0,0.00016438,2]
[390346659,1760028632577,-500.0,0.00016438,2]
[390346661,1760028632587,-500.0,0.00016438,2]
[390346663,1760028632596,-500.0,0.00016438,2]
[390346665,1760028632605,-500.0,0.00016438,2]
[390346667,1760028632615,-580.76,0.00016438,2]
[390346669,1760028632624,-401.81368401,0.00016438,2]
[390346671,1760028632640,-500.0,0.00016438,2]
[390346672,1760028632653,-766.6,0.00016438,2]
[390346673,1760028632663,-500.0,0.00016438,2]